Cogmind - Beta 15 @@@ ROGUE MODE // 2025.06.13 @ 12:03:33 Player: dbb Result: Destroyed by H-77 Assassin with Coil Gun Performance ------------- Evolutions (7) 3500 Regions Visited (24) 4800 Robots Destroyed (161) 805 Value Destroyed (6184) 6184 Prototype IDs (50) 1000 Alien Tech Used (3) 600 Bonus (5523) 5523 TOTAL SCORE: 22412 Bonus ------- High Alert Combat Kills 550 Follower Combat Kills 2582 Network Hubs Disabled 400 Met Zhirov 300 Met Warlord at Base 500 MAIN.C Attacked Warlord 500 Built Enhanced Grunts 300 Met R17 at Cetus 500 Friendly Fire -109 Cogmind --------- Core Integrity 0/1300 Matter 113/300 Energy 100/100 System Corruption 1% Temperature Cool (0) Movement Core (50) Location -3/Quarantine Parts ------- > --- POWER (2) -------- (None) > --- PROPULSION (4) --- (None) > --- UTILITY (11) ----- (None) > --- WEAPON (4) ------- (None) > --- INVENTORY (5) ---- Advanced Signal Interpreter Transdimensional Reconstructor Phasing Sabre Signal Generator Signal Generator Peak State ------------ > --- POWER ------------ Antimatter Reactor Improved Fusion Compressor > --- PROPULSION ------- Armored Leg Myomer Leg Enhanced Biometal Leg VTOL Module > --- UTILITY ---------- Advanced Weight Redist. System Gravity Neutralizer Enhanced Optical Array Improved Signal Interpreter Layered Light Armor Plating Layered Light Armor Plating Improved Hacking Suite Experimental System Shield > --- WEAPON ----------- Vortex Shotgun Advanced Datajack RU-N14's Throwing Claymores v3 RU-N14's Throwing Claymores v3 > --- INVENTORY -------- Signal Generator Signal Generator [Rating: 110] Favorites ----------- Power F-cell Engine Engine F-cell Engine Power Core Micro Nuclear Core Reactor Cold Fusion Reactor Propulsion Improved Titanium Leg Treads Light Treads Leg Improved Titanium Leg Hover Unit Cooled Gravmag System Flight Unit VTOL Module Utility Experimental System Shield Device Advanced Weight Redist. System Storage Huge Storage Unit Processor Enhanced Optical Array Hackware Experimental System Shield Protection Utility Shielding Weapon Heavy EM Pulse Gun Energy Gun Heavy EM Pulse Gun Ballistic Gun Light Assault Rifle Ballistic Cannon Mini Assault Cannon Launcher Precision Grenade Launcher Special Weapon RU-N14's Throwing Claymores v3 Slashing Weapon Chainsword Piercing Weapon Enhanced Force Lance Special Melee Weapon Advanced Datajack Build | -11 -10 -10 -9 -8 -8 -7 -7 -7 -6 -6 -6 -6 -6 -5 -5 -5 -4 -4 -4 -4 -4 -3 -3 -3 ------- Run | Yrd Mat Min Mat Mat Sto Fac Was Fac Fac Ext Cet Arc Hub Fac Upp War Pro Fac Upp Upp Zhi Pro Res Qua Slots Evolved 14 | . . . 2 2 . 2 . . 2 . . . . 2 . . . 2 . . . . 2 . Power 1 | . . . . 1 . . . . . . . . . . . . . . . . . . . . Propulsion 2 | . . . . 1 . 1 . . . . . . . . . . . . . . . . . . Utility 9 | . . . 2 . . 1 . . 2 . . . . 1 . . . 1 . . . . 2 . Weapon 2 | . . . . . . . . . . . . . . 1 . . . 1 . . . . . . Parts Attached 166 | 6 5 . 10 8 4 19 2 13 7 12 3 10 7 9 . 16 2 1 9 2 5 1 4 11 Power 28 | 1 . . 1 2 . 4 1 4 2 1 . 2 . 2 . 3 . 1 1 . . 1 . 2 Engine 10 | 1 . . . 2 . 1 . 3 2 . . . . . . . . . . . . 1 . . Core 13 | . . . 1 . . 3 1 1 . . . 2 . 2 . 1 . 1 1 . . . . . Reactor 5 | . . . . . . . . . . 1 . . . . . 2 . . . . . . . 2 Propulsion 46 | 2 . . 2 2 4 6 1 5 1 3 . 4 1 2 . 6 1 . 1 . 3 . 1 1 Treads 9 | 2 . . . . 4 3 . . . . . . . . . . . . . . . . . . Leg 20 | . . . . . . 3 . 5 1 3 . . . . . 6 . . 1 . . . . 1 Wheel . | . . . . . . . . . . . . . . . . . . . . . . . . . Hover 3 | . . . . . . . . . . . . . . . . . . . . . 3 . . . Flight 14 | . . . 2 2 . . 1 . . . . 4 1 2 . . 1 . . . . . 1 . Utility 61 | 1 3 . 4 2 . 6 . 2 4 6 2 3 4 4 . 3 . . 4 2 2 . 2 7 Device 21 | . . . 2 . . 3 . . . 1 1 1 1 3 . 1 . . 2 1 . . 2 3 Storage 5 | 1 2 . . . . . . 1 1 . . . . . . . . . . . . . . . Processor 7 | . 1 . 1 . . . . . . . . . 1 1 . . . . 1 . . . . 2 Hackware 6 | . . . . . . . . 1 . . . 2 . . . . . . . . 1 . . 2 Protection 22 | . . . 1 2 . 3 . . 3 5 1 . 2 . . 2 . . 1 1 1 . . . Artifact . | . . . . . . . . . . . . . . . . . . . . . . . . . Weapon 31 | 2 2 . 3 2 . 3 . 2 . 2 1 1 2 1 . 4 1 . 3 . . . 1 1 Energy Gun 13 | 2 2 . 2 1 . 2 . . . . . . . 1 . 1 . . 2 . . . . . Energy Cannon . | . . . . . . . . . . . . . . . . . . . . . . . . . Ballistic Gun 1 | . . . . 1 . . . . . . . . . . . . . . . . . . . . Ballistic Cannon 1 | . . . . . . 1 . . . . . . . . . . . . . . . . . . Launcher 4 | . . . 1 . . . . 1 . 1 1 . . . . . . . . . . . . . Special Weapon 4 | . . . . . . . . . . . . . . . . 3 1 . . . . . . . Impact Weapon . | . . . . . . . . . . . . . . . . . . . . . . . . . Slashing Weapon 5 | . . . . . . . . 1 . . . . 2 . . . . . 1 . . . . 1 Piercing Weapon 1 | . . . . . . . . . . . . . . . . . . . . . . . 1 . Special Melee Weapon 2 | . . . . . . . . . . 1 . 1 . . . . . . . . . . . . Unidentified Prototypes 20 | . . . 1 . . 1 . 4 . 1 1 . 1 1 . 4 . . . . 3 1 . 2 Corrupted Parts 1 | . . . . . . . . . . . . 1 . . . . . . . . . . . . System Corruption 1 | . . . . . . . . . . . . 1 . . . . . . . . . . . . Parts Lost 96 | . . . 10 10 2 10 1 1 2 4 2 1 3 14 1 . 2 . 15 . . 11 3 4 Power 16 | . . . 1 3 . 2 1 . . . . . . 4 . . 1 . 1 . . 2 1 . Propulsion 31 | . . . 2 4 1 5 . . 1 . 1 1 2 3 . . 1 . 4 . . 3 2 1 Utility 32 | . . . 1 2 1 2 . . 1 2 . . 1 5 1 . . . 7 . . 6 . 3 Weapon 17 | . . . 6 1 . 1 . 1 . 2 1 . . 2 . . . . 3 . . . . . Highest Loss Streak 10 | . . . 7 10 1 4 1 1 2 2 2 1 1 7 1 . 2 . 8 . . 4 2 4 To Critical Strikes 2 | . . . . . . . . . . . 1 . . . . . . . 1 . . . . . Average Backups 5 | . 9 12 10 4 4 3 3 5 7 9 9 8 4 2 2 2 2 . . 1 2 2 2 3 Power . | . . 1 . . . . . . 2 2 2 1 . . . . . . . 1 2 1 . . Propulsion . | . . . 1 . . . 1 2 1 3 4 2 . . . . . . . . . . . . Utility 2 | . 5 7 5 4 4 3 1 2 2 3 3 4 3 1 1 . . . . . . . . 1 Weapon . | . 3 4 2 . . . . . . . . . 1 . . 1 1 . . . . . . 1 Tool/Special . | . . . . . . . . . . . . . . . . . . . . . . . . . Unused Backups 23 | . 2 . 1 . . 6 2 4 2 2 . . 2 . . . . . . . . . . 2 Power 3 | . . . 1 . . . . . 1 1 . . . . . . . . . . . . . . Propulsion 2 | . 1 . . . . . . . 1 . . . . . . . . . . . . . . . Utility 12 | . 1 . . . . 4 1 2 . 1 . . 2 . . . . . . . . . . 1 Weapon 4 | . . . . . . 1 1 2 . . . . . . . . . . . . . . . . Tool/Special 2 | . . . . . . 1 . . . . . . . . . . . . . . . . . 1 Average Slot Usage (%) 80 | . 95 100 88 51 32 69 97 100 98 98 93 93 89 68 36 66 96 90 58 44 55 64 23 39 Engine 5 | . 14 14 2 7 . 2 5 11 13 7 6 4 . . . 7 . . . . . 1 . . Core 2 | . . . 6 . . 5 5 2 . . . 3 13 6 . . . 1 1 5 5 2 . . Reactor 1 | . . . . . . . . . . 4 6 4 . . . . 7 5 2 . . . . . Treads 6 | . 28 28 17 . 16 21 5 . . . . . . . . . . . . . . . . . Leg 9 | . . . . . . 1 23 23 25 26 20 13 . . . 1 17 15 10 5 5 2 . 3 Flight 3 | . . . . 17 . . 1 7 . . . 7 21 15 5 5 4 5 . . . . 1 . Device 10 | . . . 8 . . 12 23 20 12 9 11 14 16 11 6 6 11 10 11 11 15 10 1 9 Storage 4 | . 14 14 10 . . 3 . 2 6 6 6 4 . . . . . . . . . . . . Processor 7 | . 10 14 22 18 16 4 . . . . . . 3 10 11 11 11 10 8 10 10 10 9 11 Hackware 4 | . . . . . . . . 4 6 6 6 10 20 12 11 11 11 10 4 . . 5 4 6 Protection 8 | . . . . 7 . 7 15 10 19 21 20 15 5 2 . . 11 10 6 6 10 11 . . Energy Gun 5 | . 27 28 17 . . 1 7 2 . . . . . 3 . . 5 5 3 . . . . . Ballistic Cannon 1 | . . . . . . 6 7 6 . . . . . . . . . . . . . . . . Launcher 1 | . . . 1 . . . . 4 6 5 6 4 . . . . . . . . . . . . Special Weapon 1 | . . . . . . . . . . . . . . . . 13 10 10 1 . . . . . Slashing Weapon 2 | . . . . . . . . . 6 5 6 6 6 1 . . . . 2 5 5 5 2 1 Peak Build Rating 110 | 6 11 11 16 13 12 36 37 49 54 63 65 75 65 67 30 108 108 110 110 46 83 89 52 100 Average Rating 44 | 4 10 11 13 10 8 27 34 42 51 59 61 65 62 49 27 62 101 105 63 39 51 68 30 61 On Entrance 42 | . 6 11 11 11 3 11 36 33 47 54 61 65 62 56 30 27 108 96 110 37 46 83 29 37 Naked Turns 43 | . . . . . . . . . . . . . . . . . . . . . . . . 43 Heaviest Build 109 | 12 89 89 94 11 . 109 30 43 59 66 61 60 23 19 1 70 70 61 61 29 30 39 16 30 Greatest Support 83 | 40 40 40 40 13 66 65 49 58 73 73 73 58 29 23 4 83 83 83 83 20 33 33 24 28 Greatest Overweight (x) 27 | 1 2 2 27 1 . 2 1 . . . 1 1 . 4 . 7 . . 5 1 2 1 1 3 Average Overweight (x) . | . . 2 3 . . . . . . . . . . . . . . . . 1 . . . . Largest Inventory Capacity 25 | 8 25 25 25 5 5 25 5 8 10 10 10 10 5 5 5 5 5 5 5 5 5 5 5 5 Average Capacity 10 | 6 18 25 24 5 5 14 5 6 8 10 10 8 5 5 5 5 5 5 5 5 5 5 5 5 Most Carried 12 | 4 12 12 12 5 5 10 5 8 10 10 10 10 5 5 2 5 5 3 5 4 5 5 5 5 Average Carried 6 | . 9 12 10 4 4 3 3 5 7 9 9 8 4 2 2 4 4 2 2 3 4 4 4 5 Final Capacity 25 | 8 25 25 5 5 5 5 5 8 10 10 10 5 5 5 5 5 5 5 5 5 5 5 5 5 Final Carried 12 | . 12 12 5 4 5 2 5 8 10 10 10 5 5 2 2 5 3 2 3 4 5 4 5 5 Class Distribution -------------------- 53% | Mutant 15% | Scavenger-Mutant 8% | Skirmisher 5% | Scavenger-Tank 4% | Scavenger-Sprinter 3% | Hacker-Skirmisher Dominant Class ---------------- Mutant | -10/Materials Mutant | -10/Mines Skirmisher | -9/Materials Mutant | -8/Materials Mutant | -8/Storage Mutant | -7/Factory Scavenger-Mutant | -7/Waste Mutant | -7/Factory Mutant | -6/Factory Mutant | -6/Extension Scavenger-Mutant | -6/Cetus Scavenger-Mutant | -6/Archives Scavenger-Sprinter | -6/Hub_04(d) Hacker-Scout | -5/Factory Hacker-Mutant | -5/Upper Caves Hacker-Skirmisher | -5/Warlord Scavenger-Tank | -4/Proximity Caves Scavenger-Tank | -4/Factory Scavenger-Mutant | -4/Upper Caves Mutant | -4/Upper Caves Mutant | -4/Zhirov Mutant | -3/Proximity Caves Mutant | -3/Research Mutant | -3/Quarantine Resources | -11 -10 -10 -9 -8 -8 -7 -7 -7 -6 -6 -6 -6 -6 -5 -5 -5 -4 -4 -4 -4 -4 -3 -3 -3 ----------- Run | Yrd Mat Min Mat Mat Sto Fac Was Fac Fac Ext Cet Arc Hub Fac Upp War Pro Fac Upp Upp Zhi Pro Res Qua Matter Collected 3010 | 161 147 10 80 117 8 271 156 278 132 673 226 197 70 60 . 160 20 . 122 40 . 82 . . Remotely . | . . . . . . . . . . . . . . . . . . . . . . . . . Salvage Created 5814 | 105 295 149 676 43 . 338 . 170 369 796 603 341 748 334 . . 303 . 250 199 . 95 . . Parts 263 | 10 16 15 38 7 . 16 . 8 11 24 21 23 26 23 . . 13 . 4 2 . 6 . . Haulers Intercepted 11 | . 2 . 1 . . . . 1 . 1 . . 5 1 . . . . . . . . . . Recyclers Shooed 2 | . . . 1 . . . . . 1 . . . . . . . . . . . . . . . Parts Field Recycled . | . . . . . . . . . . . . . . . . . . . . . . . . . Retrieved Matter . | . . . . . . . . . . . . . . . . . . . . . . . . . Parts Self-Destructed 25 | . . . . . . . . . . . . . . . . . 10 . 7 2 . 6 . . Prevented 1 | . . . . . . . . . . . . . . . . . . . 1 . . . . . Kills | -11 -10 -10 -9 -8 -8 -7 -7 -7 -6 -6 -6 -6 -6 -5 -5 -5 -4 -4 -4 -4 -4 -3 -3 -3 ------- Run | Yrd Mat Min Mat Mat Sto Fac Was Fac Fac Ext Cet Arc Hub Fac Upp War Pro Fac Upp Upp Zhi Pro Res Qua Combat Hostiles Destroyed 115 | . 3 5 13 6 . 10 . 2 2 17 9 . 3 10 . . 21 . 11 . . 3 . . Melee 11 | . . . . 1 . . . . 2 2 . . 2 2 . . . . 1 . . 1 . . Guns 26 | . 2 5 7 1 . 1 . . . . . . . 8 . . 1 . 1 . . . . . Cannons 15 | . . . . . . 9 . 1 . . . . . . . . 4 . 1 . . . . . AOE 57 | . 1 . 5 4 . . . 1 . 15 5 . 1 . . . 16 . 8 . . 1 . . Classes Destroyed 15 | 2 4 1 2 . . 2 . . . 1 . . . . . . . . 2 . . 1 . . Worker 4 | . 2 . 1 . . . . . . . . . 1 . . . . . . . . . . . Tunneler 3 | 2 . . 1 . . . . . . . . . . . . . . . . . . . . . Hauler 11 | . 2 . 1 . . . . 1 . 1 . . 5 1 . . . . . . . . . . Recycler 6 | 1 . . 3 . . . . . 2 . . . . . . . . . . . . . . . Operator 13 | . 1 . 1 . . . . 1 . . . 9 1 . . . . . . . . . . . Drone 2 | . . . . . . . . . . . . . . . . . . . . . . 2 . . Watcher 9 | . . . 2 . . . . 1 . 3 2 . 1 . . . . . . . . . . . Swarmer 42 | . . 3 4 6 . 1 . . . . . . . 10 . . 14 . 4 . . . . . Grunt 51 | . 3 2 8 . . 7 . 2 1 14 2 . 1 . . . 6 . 4 . . 1 . . Brawler 2 | . . . . . . 1 . . 1 . . . . . . . . . . . . . . . Sentry 6 | . . . 1 . . . . . . 2 . . 2 . . . 1 . . . . . . . Hunter 2 | . . . . . . . . . . . . . . . . . . . 2 . . . . . Programmer 1 | . . . . . . 1 . . . . . . . . . . . . . . . . . . Behemoth 1 | . . . . . . . . . . 1 . . . . . . . . . . . . . . Cetus Guard 7 | . . . . . . . . . . . 7 . . . . . . . . . . . . . Butcher 1 | . . . . . . . . . . . . . . . . . . . 1 . . . . . Best Kill Streak 8 | 3 7 3 7 5 . 3 . 2 2 7 5 8 3 5 . . 7 . 4 . . 1 . . Combat Bots Only 7 | . 2 3 7 5 . 3 . 1 2 7 4 . 1 5 . . 7 . 4 . . 1 . . Max Kills in Single Turn 5 | 2 2 1 4 4 . 1 . 2 1 3 2 1 2 1 . . 5 . 4 . . 1 . . Gunslinging . | . . . . . . . . . . . . . . . . . . . . . . . . . Exploded 4 | . 1 . 4 4 . . . 1 . 2 2 . 1 . . . 4 . 4 . . 1 . . Melee 1 | . . . . 1 . . . . 1 1 . . 1 1 . . . . 1 . . 1 . . Uniques/NPCs Destroyed . | . . . . . . . . . . . . . . . . . . . . . . . . . Combat | -11 -10 -10 -9 -8 -8 -7 -7 -7 -6 -6 -6 -6 -6 -5 -5 -5 -4 -4 -4 -4 -4 -3 -3 -3 -------- Run | Yrd Mat Min Mat Mat Sto Fac Was Fac Fac Ext Cet Arc Hub Fac Upp War Pro Fac Upp Upp Zhi Pro Res Qua Hostile Shots Fired 1197 | . 7 12 122 110 101 136 1 15 32 100 41 2 23 84 4 . 35 1 101 . . 136 35 99 Missed 444 | . 5 4 33 46 41 41 . 9 6 36 15 . 15 25 3 . 10 . 38 . . 70 14 33 Hits 753 | . 2 8 89 64 60 95 1 6 26 64 26 2 8 59 1 . 25 1 63 . . 66 21 66 Melee 31 | . . . . . . 3 1 . 2 . . . . . . . . . 22 . . . . 3 Projectile 722 | . 2 8 89 64 60 92 . 6 24 64 26 2 8 59 1 . 25 1 41 . . 66 21 63 AOE 1 | . . . . . . 1 . . . . . . . . . . . . . . . . . . Critical Strikes 51 | . 1 . 1 1 7 2 . . 7 3 7 . . 1 . . 1 . 7 . . 7 . 6 Actively Blocked 4 | . . . . . . . . . 2 . . . . . . . . . . . . 2 . . Part Disruptions 1 | . . . . . . 1 . . . . . . . . . . . . . . . . . . Damage Taken 14646 | . 29 80 1159 845 960 1525 90 88 603 1277 542 83 460 1154 23 49 413 21 1730 . . 1422 641 1452 Core 3926 | . . 20 352 241 294 301 54 26 19 102 57 . 77 387 . . 17 . 277 . . 391 444 867 Absorbed by Shields 504 | . . . . . . 136 4 . 8 135 197 . . . . . . . . . . . 7 17 Redirected to Shielding 373 | . . . . . . 9 . . 90 59 . . . . . . . . . . . 215 . . Regen/Repaired (Parts) 400 | . 15 . . . . . 122 10 203 . . . . . . . . . . . . . . 50 Core Remaining (%) 52 | 100 . 92 12 . 2 . . 45 . . . . 70 . . . 59 . . . . 41 . . Volleys Fired 265 | 3 13 7 46 2 . 42 . 14 7 37 18 11 . 38 . . 15 . 12 . . . . . Largest 2 | 2 2 2 2 2 . 2 . 2 1 1 1 1 . 1 . . 1 . 2 . . . . . Hottest 188 | 90 90 90 90 85 . 109 . 76 36 43 43 43 . 65 . . 60 . 188 . . . . . Shots Fired 346 | 6 26 14 86 4 . 51 . 16 7 37 18 11 . 38 . . 15 . 17 . . . . . Gun 201 | 6 26 14 82 4 . 13 . 1 . . . . . 38 . . 6 . 11 . . . . . Cannon 50 | . . . . . . 38 . 12 . . . . . . . . . . . . . . . . Launcher 80 | . . . 4 . . . . 3 7 37 18 11 . . . . . . . . . . . . Special 15 | . . . . . . . . . . . . . . . . . 9 . 6 . . . . . Kinetic 52 | . . . . 2 . 38 . 12 . . . . . . . . . . . . . . . . Thermal 67 | 3 . . . 2 . 13 . 1 . . . . . 38 . . . . 10 . . . . . Explosive 70 | . . . 4 . . . . 3 7 37 4 . . . . . 9 . 6 . . . . . Electromagnetic 150 | 3 26 14 82 . . . . . . . 14 11 . . . . . . . . . . . . Entropic 7 | . . . . . . . . . . . . . . . . . 6 . 1 . . . . . Robot Hit Streak 13 | 3 3 8 8 4 . 13 . 4 4 10 5 3 . 6 . . 7 . 4 . . . . . Robot Miss Streak 4 | 2 4 2 3 1 . 3 . 2 . 3 1 2 . 2 . . 3 . 2 . . . . . Penetration Max . | . . . . . . . . . . . . . . . . . . . . . . . . . Secondary Targets 2 | . . . 1 1 . . . . . . . . . . . . . . . . . . . . Max Gunslinging Chain 1 | . . . 1 1 . . . . . . . . . . . . . . . . . . . . Shots Hit Robots 296 | 3 13 10 49 3 . 38 . 7 15 39 11 11 26 32 . . 12 1 16 3 . 3 1 3 Core Hits 257 | 4 9 6 22 5 3 16 . 8 9 50 36 10 15 12 . . 27 . 20 3 . 1 . 1 Critical Kills . | . . . . . . . . . . . . . . . . . . . . . . . . . Critical Parts Destroyed 1 | . . . . . . . . . . . . . . . . . 1 . . . . . . . Critical Strikes 20 | . . . . . . 2 . 1 2 1 . . 6 2 . . 2 . 2 . . 1 . 1 Burn 2 | . . . . . . 1 . . . . . . . 1 . . . . . . . . . . Blast 2 | . . . . . . 1 . 1 . . . . . . . . . . . . . . . . Sever 15 | . . . . . . . . . 2 1 . . 6 1 . . 1 . 2 . . 1 . 1 Detonate 1 | . . . . . . . . . . . . . . . . . 1 . . . . . . . Melee Attacks 135 | . . . . . . . . . 15 25 . 11 44 8 . . . 1 14 3 . 6 2 6 Impact . | . . . . . . . . . . . . . . . . . . . . . . . . . Slashing 115 | . . . . . . . . . 15 10 . 11 44 8 . . . . 13 3 . 6 1 4 Piercing 3 | . . . . . . . . . . . . . . . . . . . . . . . 1 2 Sneak Attacks 33 | . . . . . . . . . 2 16 . 6 6 1 . . . 1 . . . . 1 . Combat Hostiles . | . . . . . . . . . . . . . . . . . . . . . . . . . Follow-up Attacks . | . . . . . . . . . . . . . . . . . . . . . . . . . Damage Inflicted 19849 | 67 437 149 1639 595 29 969 . 438 715 3225 1564 1198 1700 1074 . . 3129 . 2265 240 . 155 116 145 Guns 2727 | 67 223 149 828 29 . 161 . 20 . . . . . 672 . . 348 . 230 . . . . . Cannons 1010 | . . . . . . 808 . 202 . . . . . . . . . . . . . . . . Explosions 11342 | . 212 . 788 533 . . . 216 174 2953 1564 656 167 . . . 2437 . 1642 . . . . . Melee 4110 | . . . . . . . . . 541 272 . 542 1533 402 . . . . 164 240 . 155 116 145 Ramming 125 | . 2 . 23 33 29 . . . . . . . . . . . . . 38 . . . . . Kinetic 1026 | . . . . 16 . 808 . 202 . . . . . . . . . . . . . . . . Thermal 1696 | 24 212 . 187 13 . 161 . 20 . . 156 . . 672 . . 51 . 200 . . . . . Explosive 8887 | . . . 601 533 . . . 216 174 2953 406 . . . . . 2362 . 1642 . . . . . Electromagnetic 3092 | 43 223 149 828 . . . . . . . 1002 656 167 . . . 24 . . . . . . . Impact . | . . . . . . . . . . . . . . . . . . . . . . . . . Slashing 4607 | . . . . . . . . . 541 272 . 542 1533 402 . . 344 . 355 240 . 155 116 107 Piercing 38 | . . . . . . . . . . . . . . . . . . . . . . . . 38 Entropic 378 | . . . . . . . . . . . . . . . . . 348 . 30 . . . . . Highest Corruption 38 | . . . . . 2 3 3 3 1 1 . 1 1 2 2 2 . . 27 27 27 38 . 1 Average Corruption 11 | . . . . . 2 3 3 3 1 1 . 1 1 1 2 2 . . 26 27 27 31 . 1 Corruption Purged 6 | . . . . . . . . . . 3 . 1 1 1 . . . . . . . . . . Corruption Blocked . | . . . . . . . . . . . . . . . . . . . . . . . . . Effects 129 | . . . . . 1 9 4 16 3 6 . . . . 1 . . . 25 26 12 26 . . Message Errors 34 | . . . . . 1 3 . 5 . 2 . . . . . . . . 7 7 3 6 . . Matter Fused 27 | . . . . . . 1 2 4 . 2 . . . . . . . . 5 6 4 3 . . Heat Flow Errors 13 | . . . . . . . 2 1 . . . . . . . . . . 2 3 2 3 . . Energy Discharges 12 | . . . . . . 3 . 1 1 . . . . . 1 . . . 2 1 1 2 . . Parts Rejected 2 | . . . . . . . . . . . . . . . . . . . 2 . . . . . Parts Fused 1 | . . . . . . . . . . 1 . . . . . . . . . . . . . . Data Loss (minor) 15 | . . . . . . . . 3 . 1 . . . . . . . . 1 8 2 . . . Data Loss (major) 5 | . . . . . . 1 . . 1 . . . . . . . . . 2 . . 1 . . Misfires 1 | . . . . . . . . 1 . . . . . . . . . . . . . . . . Alerts 5 | . . . . . . . . 1 1 . . . . . . . . . . 1 . 2 . . Misdirections 13 | . . . . . . . . . . . . . . . . . . . 4 . . 9 . . Weapon Failures 1 | . . . . . . 1 . . . . . . . . . . . . . . . . . . Overload Shots . | . . . . . . . . . . . . . . . . . . . . . . . . . Overflow Damage 1127 | . . . 137 97 . 24 . 3 80 91 . 174 190 43 . . 162 . 125 . . . . 1 Projectiles 24 | . . . . . . 24 . . . . . . . . . . . . . . . . . . Explosions 765 | . . . 137 97 . . . 3 23 91 . 106 21 . . . 162 . 125 . . . . . Melee 338 | . . . . . . . . . 57 . . 68 169 43 . . . . . . . . . 1 Knockbacks 16 | . . . . . . 16 . . . . . . . . . . . . . . . . . . Impact . | . . . . . . . . . . . . . . . . . . . . . . . . . Kinetic 14 | . . . . . . 14 . . . . . . . . . . . . . . . . . . Secondary 2 | . . . . . . 2 . . . . . . . . . . . . . . . . . . Self-Inflicted Damage 672 | . . . 304 117 11 . . 3 . . 23 35 179 . . . . . . . . . . . Shots 14 | . . . 6 1 . . . 1 . . 2 2 2 . . . . . . . . . . . Rammed 19 | . 1 . 3 4 11 . . . . . . . . . . . . . . . . . . . Targets Rammed 36 | . 1 . 4 4 11 . . . . . . . . . . . . . 16 . . . . . Kicked 16 | . . . . . . . . . . . . . . . . . . . 16 . . . . . Crushed 1 | . . . 1 . . . . . . . . . . . . . . . . . . . . . Highest Temperature 500 | 60 216 120 311 24 23 317 168 158 18 79 12 . 10 166 . . 72 . 500 236 128 173 . . Average Temperature 78 | 26 64 59 80 18 10 134 77 55 7 25 7 . 4 68 . . 28 . 205 97 69 88 . . Received Heat Transfer 2603 | . 36 30 249 54 522 525 . 54 234 383 12 9 93 . . 18 27 . 75 . . 129 114 39 Effects 5 | . . . . . . 3 . . . . . . . . . . . . 2 . . . . . Shutdowns 1 | . . . . . . 1 . . . . . . . . . . . . . . . . . . Energy Bleed 2 | . . . . . . 1 . . . . . . . . . . . . 1 . . . . . Interference 1 | . . . . . . 1 . . . . . . . . . . . . . . . . . . Short Circuit 1 | . . . . . . . . . . . . . . . . . . . 1 . . . . . Siege Activations . | . . . . . . . . . . . . . . . . . . . . . . . . . Martial Activations . | . . . . . . . . . . . . . . . . . . . . . . . . . Shielding Activations . | . . . . . . . . . . . . . . . . . . . . . . . . . Robots Disrupted . | . . . . . . . . . . . . . . . . . . . . . . . . . Combat Hostiles . | . . . . . . . . . . . . . . . . . . . . . . . . . Robots Corrupted 6 | . . . 1 . . . . . . . 4 1 . . . . . . . . . . . . Combat Hostiles 5 | . . . 1 . . . . . . . 4 . . . . . . . . . . . . . Parts Fried 18 | . . . 3 . . . . . . . 3 12 . . . . . . . . . . . . Impact Corruptions . | . . . . . . . . . . . . . . . . . . . . . . . . . Robots Melted . | . . . . . . . . . . . . . . . . . . . . . . . . . Combat Hostiles . | . . . . . . . . . . . . . . . . . . . . . . . . . Parts Melted 3 | . 1 . . . . . . . . . . . . 2 . . . . . . . . . . Heat Transferred 2593 | 74 350 . 300 37 . 407 . 37 . . 50 . . 999 . . 80 . 259 . . . . . Parts Sabotaged . | . . . . . . . . . . . . . . . . . . . . . . . . . Parts Stolen . | . . . . . . . . . . . . . . . . . . . . . . . . . Parts Stripped . | . . . . . . . . . . . . . . . . . . . . . . . . . Power Chain Reactions 7 | . 2 . 3 . . . . . . . 2 . . . . . . . . . . . . . Alert | -11 -10 -10 -9 -8 -8 -7 -7 -7 -6 -6 -6 -6 -6 -5 -5 -5 -4 -4 -4 -4 -4 -3 -3 -3 ------- Run | Yrd Mat Min Mat Mat Sto Fac Was Fac Fac Ext Cet Arc Hub Fac Upp War Pro Fac Upp Upp Zhi Pro Res Qua Maximum Alert Level 4 | . . . . 1 1 . . . . 3 3 2 4 2 . . . . . . . . 2 1 Low Security (%) 72 | 100 100 100 100 95 94 100 100 100 100 35 . . 28 . . . . 100 . . . . . 59 Level 1 5 | . . . . 4 5 . . . . 7 . 46 20 . . . . . . . . . . 40 Level 2 19 | . . . . . . . . . . 55 78 53 23 100 . . . . . . . . 100 . Level 3 2 | . . . . . . . . . . 1 21 . 22 . . . . . . . . . . . Level 4 . | . . . . . . . . . . . . . 4 . . . . . . . . . . . Level 5 . | . . . . . . . . . . . . . . . . . . . . . . . . . High Security . | . . . . . . . . . . . . . . . . . . . . . . . . . Max Security . | . . . . . . . . . . . . . . . . . . . . . . . . . Peak Influence 1107 | 10 74 104 194 220 256 147 40 165 61 780 746 437 1107 629 . . . 151 . . . . 498 232 Initial 541 | . . . 37 49 84 116 40 . . 9 434 278 145 541 . . . 151 . . . . 483 226 Average 184 | . 14 6 69 51 110 44 5 91 13 370 557 378 478 528 . . . 129 . . . . 456 186 Influence Increases 8305 | 15 124 120 553 325 322 324 42 660 225 1347 482 259 1486 412 45 15 440 . 260 5 . 180 480 184 Destroy 0b10 Robot/C 3540 | . 60 100 260 120 . 200 . 320 100 720 220 80 520 200 . . 420 . 200 . . 20 . . Destroy 0b10 Robot/NC 280 | 15 25 . 45 . . . . 20 10 25 10 45 65 5 . . . . . 5 . 10 . . Destroy Leader 538 | . 14 20 56 20 . 30 . 66 30 96 10 . 124 22 . . 20 . 30 . . . . . Allied During Kill 1032 | . . . . . . . . 214 8 246 185 58 321 . . . . . . . . . . . Successful Hack 282 | . 3 . 5 5 7 14 . . 19 45 11 . 76 33 . . . . . . . . . 64 Disable Machine 480 | . 15 . 120 15 . 15 . 15 30 45 . 75 120 . . . . . . . . . 15 15 Destroy Structure 533 | . 7 . 67 30 . 5 42 25 28 95 46 1 185 2 . . . . . . . . . . Advance Influence 450 | . . . . . . . . . . . . . . . . . . . . . . . 450 . Partial Spotted 75 | . . . . 15 15 . . . . . . . 30 . . . . . . . . . 15 . Lose Combat Pursuer 1095 | . . . . 120 300 60 . . . 75 . . 45 150 45 15 . . 30 . . 150 . 105 Influence Decreases 8115 | 15 124 24 531 243 266 463 159 660 206 590 562 538 796 1046 206 320 207 139 361 5 . 130 127 397 Entered New Map 2885 | . . . 59 69 116 140 77 . . 10 342 418 272 566 176 312 7 89 38 . . . 17 177 Time Decay 3558 | 15 124 24 377 80 130 263 50 330 180 420 180 90 294 190 20 8 180 50 233 5 . 55 80 180 Lost Part 804 | . . . 95 94 20 60 . 10 20 40 20 10 30 140 10 . 20 . 90 . . 75 30 40 Lost Ally 418 | . . . . . . . 32 170 6 120 20 20 50 . . . . . . . . . . . Purge Threat 450 | . . . . . . . . 150 . . . . 150 150 . . . . . . . . . . Squads Dispatched 53 | . 4 . 3 1 2 1 . 7 4 6 1 . 10 6 . . . . . . . . 3 5 Investigation 20 | . 1 . 1 . 2 . . 2 1 5 1 . 3 2 . . . . . . . . 2 . Extermination 8 | . . . . . . 1 . 1 2 . . . 2 1 . . . . . . . . . 1 Reinforcement 21 | . 3 . 2 1 . . . 3 1 1 . . 5 2 . . . . . . . . 1 2 Assault 1 | . . . . . . . . . . . . . . 1 . . . . . . . . . . Garrison 3 | . . . . . . . . 1 . . . . . . . . . . . . . . . 2 Intercept . | . . . . . . . . . . . . . . . . . . . . . . . . . Searches Triggered . | . . . . . . . . . . . . . . . . . . . . . . . . . Construction Impeded 2 | . . . . 1 . . . . . 1 . . . . . . . . . . . . . . Haulers Reinforced 4 | . . . . . . . . 1 . . . . 3 . . . . . . . . . . . Active Scanning Responses . | . . . . . . . . . . . . . . . . . . . . . . . . . Cargo Convoy Interrupts . | . . . . . . . . . . . . . . . . . . . . . . . . . Stealth | -11 -10 -10 -9 -8 -8 -7 -7 -7 -6 -6 -6 -6 -6 -5 -5 -5 -4 -4 -4 -4 -4 -3 -3 -3 --------- Run | Yrd Mat Min Mat Mat Sto Fac Was Fac Fac Ext Cet Arc Hub Fac Upp War Pro Fac Upp Upp Zhi Pro Res Qua Distress Signals 17 | . 4 . 3 . 2 . . 1 . 2 2 . 3 . . . . . . . . . . . Communications Jammed . | . . . . . . . . . . . . . . . . . . . . . . . . . Distress Signals . | . . . . . . . . . . . . . . . . . . . . . . . . . Times Spotted 348 | . 9 5 27 21 25 14 6 19 6 38 11 13 45 23 3 4 18 1 22 . . 18 3 17 Peak Tracking Total 14 | . 2 3 8 9 14 7 3 4 3 5 5 1 9 9 3 2 5 1 11 . . 10 2 11 Tactical Retreats 30 | . . . . 3 5 2 . . . 2 . . 3 4 1 1 . . 3 . . 4 . 2 Traps | -11 -10 -10 -9 -8 -8 -7 -7 -7 -6 -6 -6 -6 -6 -5 -5 -5 -4 -4 -4 -4 -4 -3 -3 -3 ------- Run | Yrd Mat Min Mat Mat Sto Fac Was Fac Fac Ext Cet Arc Hub Fac Upp War Pro Fac Upp Upp Zhi Pro Res Qua Traps Triggered 11 | . 1 . 1 . 1 2 . . . 3 . . . . . . . . . . . . 3 . Indirectly . | . . . . . . . . . . . . . . . . . . . . . . . . . Trap Hack Attempts . | . . . . . . . . . . . . . . . . . . . . . . . . . Triggered . | . . . . . . . . . . . . . . . . . . . . . . . . . Disarmed 10 | . . . . . . . . . . . . . . . . . . . . . . . . 10 Reprogrammed . | . . . . . . . . . . . . . . . . . . . . . . . . . Reused . | . . . . . . . . . . . . . . . . . . . . . . . . . Traps Extracted . | . . . . . . . . . . . . . . . . . . . . . . . . . Installed . | . . . . . . . . . . . . . . . . . . . . . . . . . Triggered . | . . . . . . . . . . . . . . . . . . . . . . . . . Machines | -11 -10 -10 -9 -8 -8 -7 -7 -7 -6 -6 -6 -6 -6 -5 -5 -5 -4 -4 -4 -4 -4 -3 -3 -3 ---------- Run | Yrd Mat Min Mat Mat Sto Fac Was Fac Fac Ext Cet Arc Hub Fac Upp War Pro Fac Upp Upp Zhi Pro Res Qua Machines Disabled 37 | . 1 . 8 1 . 1 . 1 2 3 . 5 8 . . . 4 . . . . 1 1 1 Max in Single Turn 4 | . 1 . 4 1 . 1 . 1 1 1 . 2 3 . . . 4 . . . . 1 1 1 Garrison Access 5 | . . . . . . 1 . 1 . . . . 1 1 . . . . . . . . 1 . Network Hub 2 | . . . . . . . . . . . . . 2 . . . . . . . . . . . Machines Repaired . | . . . . . . . . . . . . . . . . . . . . . . . . . Machines Dismantled . | . . . . . . . . . . . . . . . . . . . . . . . . . Machines Sabotaged . | . . . . . . . . . . . . . . . . . . . . . . . . . Overloaded Fab Kills . | . . . . . . . . . . . . . . . . . . . . . . . . . Hacking | -11 -10 -10 -9 -8 -8 -7 -7 -7 -6 -6 -6 -6 -6 -5 -5 -5 -4 -4 -4 -4 -4 -3 -3 -3 --------- Run | Yrd Mat Min Mat Mat Sto Fac Was Fac Fac Ext Cet Arc Hub Fac Upp War Pro Fac Upp Upp Zhi Pro Res Qua Machines Accessed 73 | . 4 . 2 2 5 2 . 4 5 14 3 . 11 6 . 2 . . 1 . 5 1 2 4 Terminals 52 | . 3 . 1 2 5 1 . 2 2 14 3 . 10 5 . . . . . . . . 1 3 Fabricators 2 | . . . . . . . . 1 1 . . . . . . . . . . . . . . . Repair Stations 4 | . 1 . . . . . . . 2 . . . . . . . . . . . . . . 1 Recycling Units 1 | . . . 1 . . . . . . . . . . . . . . . . . . . . . Scanalyzers . | . . . . . . . . . . . . . . . . . . . . . . . . . Garrison Access 5 | . . . . . . 1 . 1 . . . . 1 1 . . . . . . . . 1 . Total Hacks 238 | . 7 . 3 9 8 5 . 8 22 41 12 . 39 33 . 5 . . 1 . 18 1 5 21 Successful 117 | . 5 . 2 4 4 2 . 5 14 11 4 . 21 11 . 5 . . 1 . 18 1 1 8 Failed 121 | . 2 . 1 5 4 3 . 3 8 30 8 . 18 22 . . . . . . . . 4 13 Catastrophic 22 | . 1 . . . 1 . . . . 7 4 . 3 5 . . . . . . . . 1 . Database Lockouts . | . . . . . . . . . . . . . . . . . . . . . . . . . Manual 46 | . 4 . . 2 . . . 1 3 7 1 . 12 12 . . . . . . . . 4 . Terminals 171 | . 5 . 2 9 8 2 . 5 3 41 12 . 37 30 . . . . . . . . 4 13 Fabricators 4 | . . . . . . . . 2 2 . . . . . . . . . . . . . . . Repair Stations 27 | . 2 . . . . . . . 17 . . . . . . . . . . . . . . 8 Recycling Units 1 | . . . 1 . . . . . . . . . . . . . . . . . . . . . Scanalyzers . | . . . . . . . . . . . . . . . . . . . . . . . . . Garrison Access 10 | . . . . . . 3 . 1 . . . . 2 3 . . . . . . . . 1 . Terminal Hacks 85 | . 3 . 1 3 4 1 . 2 1 11 4 . 17 8 . 5 . . 1 . 18 1 . 5 Record 12 | . . . . . . . . . . . 4 . . . . . . . . . 6 1 . 1 Part Schematic 8 | . 1 . . . . . . . . . . . 3 . . . . . . . 4 . . . Robot Schematic 2 | . . . . . . . . . . . . . 2 . . . . . . . . . . . Robot Analysis 12 | . . . . . . . . . . . . . 6 2 . . . . . . 4 . . . Prototype ID Bank 14 | . 1 . . 1 . . . 1 . 2 . . 1 . . 4 . . . . 4 . . . Open Door 13 | . . . . . 3 . . . 1 7 . . . . . 1 . . 1 . . . . . Open DSF 1 | . . . . . . . . . . . . . . 1 . . . . . . . . . . Level Access Points 2 | . . . . . . . . . . . . . 1 . . . . . . . . . . 1 Branch Access Points 4 | . . . . 1 . . . . . 1 . . . 1 . . . . . . . . . 1 Emergency Access Points 1 | . . . . . . . . . . . . . . 1 . . . . . . . . . . Unreport Threat 3 | . . . . . . . . 1 . . . . 1 1 . . . . . . . . . . Disarm Traps 2 | . . . . . . . . . . . . . . . . . . . . . . . . 2 Recall Investigation 2 | . . . . 1 1 . . . . . . . . . . . . . . . . . . . Recall Reinforcements 3 | . . . . . . . . . . . . . 1 2 . . . . . . . . . . Hauler Manifests 1 | . 1 . . . . . . . . . . . . . . . . . . . . . . . Zone Layout 5 | . . . 1 . . 1 . . . 1 . . 2 . . . . . . . . . . . Fabricator Hacks 3 | . . . . . . . . 2 1 . . . . . . . . . . . . . . . Load Schematic 1 | . . . . . . . . 1 . . . . . . . . . . . . . . . . Build 2 | . . . . . . . . 1 1 . . . . . . . . . . . . . . . Repair Station Hacks 16 | . 2 . . . . . . . 11 . . . . . . . . . . . . . . 3 Scan Component 10 | . 1 . . . . . . . 7 . . . . . . . . . . . . . . 2 Repair 6 | . 1 . . . . . . . 4 . . . . . . . . . . . . . . 1 Recycling Unit Hacks 1 | . . . 1 . . . . . . . . . . . . . . . . . . . . . Retrieve Components 1 | . . . 1 . . . . . . . . . . . . . . . . . . . . . Scanalyzer . | . . . . . . . . . . . . . . . . . . . . . . . . . Garrison Access Hacks 5 | . . . . . . 1 . 1 . . . . 1 1 . . . . . . . . 1 . Seal Access 5 | . . . . . . 1 . 1 . . . . 1 1 . . . . . . . . 1 . Unauthorized Hacks 7 | . . . . 1 . . . . 1 . . . 3 2 . . . . . . . . . . Terminals 6 | . . . . 1 . . . . . . . . 3 2 . . . . . . . . . . Assimilate 2 | . . . . . . . . . . . . . 1 1 . . . . . . . . . . Operators 2 | . . . . 1 . . . . . . . . . 1 . . . . . . . . . . Sabotage 2 | . . . . . . . . . . . . . 2 . . . . . . . . . . . Fabricators 1 | . . . . . . . . . 1 . . . . . . . . . . . . . . . Liberate 1 | . . . . . . . . . 1 . . . . . . . . . . . . . . . Repair Stations . | . . . . . . . . . . . . . . . . . . . . . . . . . Recycling Units . | . . . . . . . . . . . . . . . . . . . . . . . . . Scanalyzers . | . . . . . . . . . . . . . . . . . . . . . . . . . Garrison Access . | . . . . . . . . . . . . . . . . . . . . . . . . . Data Cores Recovered . | . . . . . . . . . . . . . . . . . . . . . . . . . Used . | . . . . . . . . . . . . . . . . . . . . . . . . . Hacking Detections 43 | . 2 . 1 1 3 1 . 3 2 10 3 . 10 3 . . . . . . . . 1 3 Full Trace Events 12 | . . . . . 2 . . 2 1 3 1 . 1 2 . . . . . . . . . . Feedback Events 2 | . . . . . . . . . . 1 . . . 1 . . . . . . . . . . Corruption 2 | . . . . . . . . . . 1 . . . 1 . . . . . . . . . . Feedback Blocked . | . . . . . . . . . . . . . . . . . . . . . . . . . Robot Schematics Acquired 2 | . . . . . . . . . . . . . 2 . . . . . . . . . . . Robots Built 3 | . . . . . . . . . 3 . . . . . . . . . . . . . . . Authchips . | . . . . . . . . . . . . . . . . . . . . . . . . . Time 58 | . . . . . . . . . 58 . . . . . . . . . . . . . . . Total Robot Build Rating 9 | . . . . . . . . . 9 . . . . . . . . . . . . . . . Part Schematics Acquired 8 | . 1 . . . . . . . . . . . 3 . . . . . . . 4 . . . Parts Built 2 | . . . . . . . . 2 . . . . . . . . . . . . . . . . Authchips . | . . . . . . . . . . . . . . . . . . . . . . . . . Time 51 | . . . . . . . . 51 . . . . . . . . . . . . . . . . Total Part Build Rating 2 | . . . . . . . . 2 . . . . . . . . . . . . . . . . Parts Repaired 6 | . 1 . . . . . . . 4 . . . . . . . . . . . . . . 1 Time 278 | . 32 . . . . . . . 184 . . . . . . . . . . . . . . 62 Parts Recycled . | . . . . . . . . . . . . . . . . . . . . . . . . . Recycled Matter . | . . . . . . . . . . . . . . . . . . . . . . . . . Retrieved Matter . | . . . . . . . . . . . . . . . . . . . . . . . . . Retrieved Components 10 | . . . 10 . . . . . . . . . . . . . . . . . . . . . Parts Scanalyzed . | . . . . . . . . . . . . . . . . . . . . . . . . . Part Schematics Acquired . | . . . . . . . . . . . . . . . . . . . . . . . . . Parts Damaged . | . . . . . . . . . . . . . . . . . . . . . . . . . Bothacking | -11 -10 -10 -9 -8 -8 -7 -7 -7 -6 -6 -6 -6 -6 -5 -5 -5 -4 -4 -4 -4 -4 -3 -3 -3 ------------ Run | Yrd Mat Min Mat Mat Sto Fac Was Fac Fac Ext Cet Arc Hub Fac Upp War Pro Fac Upp Upp Zhi Pro Res Qua Used RIF Installer . | . . . . . . . . . . . . . . . . . . . . . . . . . Robots Hacked 1 | . . . . . . . . . . . . . . . . . . 1 . . . . . . Non-combat 1 | . . . . . . . . . . . . . . . . . . 1 . . . . . . Combat . | . . . . . . . . . . . . . . . . . . . . . . . . . Robot Hacks Applied 1 | . . . . . . . . . . . . . . . . . . 1 . . . . . . parse_system 1 | . . . . . . . . . . . . . . . . . . 1 . . . . . . Relay Couplers Released . | . . . . . . . . . . . . . . . . . . . . . . . . . Fabnet Peak Effective % . | . . . . . . . . . . . . . . . . . . . . . . . . . Robots Rewired 7 | . . . . . . . . . . 7 . . . . . . . . . . . . . . Allies Hacked . | . . . . . . . . . . . . . . . . . . . . . . . . . Hacks Repelled . | . . . . . . . . . . . . . . . . . . . . . . . . . Allies | -11 -10 -10 -9 -8 -8 -7 -7 -7 -6 -6 -6 -6 -6 -5 -5 -5 -4 -4 -4 -4 -4 -3 -3 -3 -------- Run | Yrd Mat Min Mat Mat Sto Fac Was Fac Fac Ext Cet Arc Hub Fac Upp War Pro Fac Upp Upp Zhi Pro Res Qua Total Allies 49 | . . . . . . . 20 . 5 18 5 . 1 . . . . . . . . . . . Largest Group 19 | . . . . . . . 19 12 5 9 8 4 3 . . . . . . . . . . . Highest-Rated Group 680 | . . . . . . . 465 340 112 383 680 353 215 . . . . . . . . . . . Highest-Rated Ally 159 | . . . . . . . 35 31 32 159 143 143 96 . . . . . . . . . . . Total Orders . | . . . . . . . . . . . . . . . . . . . . . . . . . Ally Attacks 450 | . . . . . . . 91 129 25 85 29 23 68 . . . . . . . . . . . Total Damage 13131 | . . . . . . . 3635 1920 517 2288 773 675 3323 . . . . . . . . . . . Kills 81 | . . . . . . . 10 15 3 19 2 4 28 . . . . . . . . . . . Allies Corrupted . | . . . . . . . . . . . . . . . . . . . . . . . . . Allies Melted 3 | . . . . . . . . 1 . 1 . . . . . 1 . . . . . . . . Intel | -11 -10 -10 -9 -8 -8 -7 -7 -7 -6 -6 -6 -6 -6 -5 -5 -5 -4 -4 -4 -4 -4 -3 -3 -3 ------- Run | Yrd Mat Min Mat Mat Sto Fac Was Fac Fac Ext Cet Arc Hub Fac Upp War Pro Fac Upp Upp Zhi Pro Res Qua Active Infowar (turns) 11658 | . 475 505 1373 190 213 326 260 978 858 1579 379 109 341 387 44 719 494 105 751 555 232 307 160 318 Optics 7169 | . 475 505 1373 190 213 . . . . . . . 341 387 44 719 494 105 751 555 232 307 160 318 Sensors 1240 | . . . 1087 . . . . . . . . . . 151 . . . . . . . . 2 . Structural 4489 | . . . . . . 326 260 978 858 1579 379 109 . . . . . . . . . . . . Triangulation 101 | . . . . . . . . . . . . . . . . . . . . . . . . 101 Robot Analysis Total 12 | . . . . . . . . . . . . . 6 2 . . . . . . 4 . . . Derelict Logs Recovered 3 | . . . . . . . . . . . . . . . 1 . 1 . . 1 . . . . Drone Launches . | . . . . . . . . . . . . . . . . . . . . . . . . . Drone Recoveries . | . . . . . . . . . . . . . . . . . . . . . . . . . Exploration | -11 -10 -10 -9 -8 -8 -7 -7 -7 -6 -6 -6 -6 -6 -5 -5 -5 -4 -4 -4 -4 -4 -3 -3 -3 ------------- Run | Yrd Mat Min Mat Mat Sto Fac Was Fac Fac Ext Cet Arc Hub Fac Upp War Pro Fac Upp Upp Zhi Pro Res Qua Turns Passed 13016 | 61 615 505 1373 190 268 992 260 978 858 1579 379 196 647 387 44 719 494 105 751 555 232 307 160 361 Spaces Moved 9378 | 33 216 152 334 237 305 590 166 686 471 1111 176 145 1119 489 125 595 403 90 520 287 150 468 210 300 Core 652 | 16 . . 17 1 260 203 . . . . . . . 15 . . . . 4 . . . 48 88 Treads 1046 | 17 216 152 291 . 45 325 . . . . . . . . . . . . . . . . . . Legs 4383 | . . . . . . 62 166 686 471 1111 176 42 . . . 58 403 90 516 287 103 . . 212 Wheels . | . . . . . . . . . . . . . . . . . . . . . . . . . Hover 772 | . . . . . . . . . . . . . . . . 168 . . . . 47 468 89 . Flight 2525 | . . . 26 236 . . . . . . . 103 1119 474 125 369 . . . . . . 73 . Fastest Speed 26 | 50 160 320 34 32 50 50 120 123 125 125 125 29 26 26 35 35 113 113 100 190 52 42 40 50 Average Speed 115 | 124 238 320 358 70 66 144 128 123 125 125 190 73 28 37 35 115 113 113 125 190 147 60 56 93 Slowest Speed 1400 | 160 320 320 1400 110 170 320 190 126 126 125 196 196 32 250 35 595 113 113 300 190 190 102 120 200 Overloaded Moves . | . . . . . . . . . . . . . . . . . . . . . . . . . Propulsion Burnouts . | . . . . . . . . . . . . . . . . . . . . . . . . . Robots Hopped 9 | . . . . 4 . . . . . . . . 4 1 . . . . . . . . . . Potential Cave-ins 4 | . . . . . . . . . . . . . 3 . . 1 . . . . . . . . Cave-ins Triggered . | . . . . . . . . . . . . . . . . . . . . . . . . . Exploration Rate (%) 48 | 4 46 43 27 27 50 14 84 24 12 97 69 95 71 23 37 87 69 4 78 58 63 75 8 40 Regions Visited 24 Branch Regions 14 Pre-discovered Areas 4 | . . . . . 1 . . . . . . . . . . . . . . . 3 . . . Known Exits Taken 11 | . . . 1 1 1 . . . . 1 . . 1 1 1 1 1 1 . . . . 1 . Unknown Exits Taken 11 | 1 1 1 . . . . . 1 1 . 1 1 . . . . . . 1 1 1 1 . . Scrap Searched 5 | . . . . . . . . . . . . . . . . . 1 . 3 1 . . . . Spaces Dug 33 | . . . 7 . . . . . 8 15 . . 2 1 . . . . . . . . . . Terrain Destroyed 1067 | . 6 . 73 46 . 4 . 36 41 234 83 . 267 1 . . 150 . 126 . . . . . Melee 4 | . . . . . . . . . . 1 . . 2 1 . . . . . . . . . . Projectile 17 | . . . . . . 4 . 1 . . . . . . . . 6 . 6 . . . . . AOE 1046 | . 6 . 73 46 . . . 35 41 233 83 . 265 . . . 144 . 120 . . . . . Terrain Rammed . | . . . . . . . . . . . . . . . . . . . . . . . . . Walls Destroyed . | . . . . . . . . . . . . . . . . . . . . . . . . . Machines Disabled . | . . . . . . . . . . . . . . . . . . . . . . . . . Actions | -11 -10 -10 -9 -8 -8 -7 -7 -7 -6 -6 -6 -6 -6 -5 -5 -5 -4 -4 -4 -4 -4 -3 -3 -3 --------- Run | Yrd Mat Min Mat Mat Sto Fac Was Fac Fac Ext Cet Arc Hub Fac Upp War Pro Fac Upp Upp Zhi Pro Res Qua Total 10962 | 47 291 158 413 249 362 670 214 810 713 1243 198 203 1372 637 124 623 426 93 577 292 156 485 244 362 Wait 778 | . 36 . 8 . 42 7 38 67 192 39 . 16 191 83 . . 6 . . . . 5 8 40 Move 9340 | 32 215 151 333 230 304 590 165 685 470 1110 175 144 1111 486 124 594 402 89 519 286 149 467 209 300 Hop 7 | . . . . 3 . . . . . . . . 3 1 . . . . . . . . . . Pick Up 103 | 6 15 . 4 1 1 9 6 12 14 8 1 2 4 7 . 4 . 1 3 1 1 2 1 . Fast Attach 88 | . 2 . 3 6 4 14 1 2 . 2 1 3 3 . . 10 1 . 9 2 6 1 5 13 Attach 60 | 6 . . 10 1 . 6 1 1 6 2 1 3 1 12 . 1 2 2 3 . . 2 . . Detach 6 | . . . . . . . . . . . . . 2 2 . . . . 1 . . . 1 . Swap 46 | . 4 . 2 1 . . . 12 3 10 1 5 3 . . 5 . . . . . . . . Drop 82 | . 5 . 3 2 . 2 3 17 6 10 1 8 10 . . 9 . . . . . 2 1 3 Fire 265 | 3 13 7 46 2 . 42 . 14 7 37 18 11 . 38 . . 15 . 12 . . . . . Melee 135 | . . . . . . . . . 15 25 . 11 44 8 . . . 1 14 3 . 6 2 6 Ram 8 | . . . . 3 5 . . . . . . . . . . . . . . . . . . . Kick 16 | . . . . . . . . . . . . . . . . . . . 16 . . . . . Crush 11 | . 1 . 4 . 6 . . . . . . . . . . . . . . . . . . . Escape Stasis 17 | . . . . . . . . . . . . . . . . . . . . . . . 17 . Rewire . | . . . . . . . . . . . . . . . . . . . . . . . . . Trap . | . . . . . . . . . . . . . . . . . . . . . . . . . Miscellaneous . | . . . . . . . . . . . . . . . . . . . . . . . . . Route ------- -11/Scrapyard -10/Materials -10/Mines -9/Materials -8/Materials (discovered 2 exits: *Sto x2) -8/Storage -7/Factory -7/Waste -7/Factory -6/Factory -6/Extension (discovered 2 exits: *Fac / *Cet) -6/Cetus (discovered 2 exits: *Fac / *Arc) -6/Archives (discovered 3 exits: *Fac / *Hub x2) -6/Hub_04(d) (discovered 4 exits: *Fac x4) -5/Factory (discovered 2 exits: *Upp x2) -5/Upper Caves -5/Warlord -4/Proximity Caves -4/Factory -4/Upper Caves -4/Upper Caves -4/Zhirov -3/Proximity Caves -3/Research (discovered 3 exits: Res / *Qua x2) -3/Quarantine (discovered 1 exit: *Res) History --------- Turn | Location | Event 13 | -11/Scrapyard | Discovered new exit (range 16) 62 | -11/Scrapyard | Entered Materials 63 | -10/Materials | Met a group of wandering Federalists 338 | -10/Materials | Build established: Mutant 518 | -10/Materials | Discovered new exit (range 18) 630 | -10/Materials | Repaired Hvy. EM Pulse Gun 677 | -10/Materials | Entered Mines 1169 | -10/Mines | Discovered new exit (range 3) 1182 | -10/Mines | Entered Materials 1182 | -9/Materials | Evolved 2 slots: Utility x2 1478 | -9/Materials | Build established: Skirmisher 2191 | -9/Materials | Discovered new exit (range 11) 2280 | -9/Materials | Core integrity fell below 50% 2301 | -9/Materials | Destroyed 7 combat bots 2307 | -9/Materials | Lost 7 parts (1p2n1u3w) 2528 | -9/Materials | Core integrity fell below 20% 2553 | -9/Materials | Build established: Mutant 2554 | -9/Materials | Identified exit to Materials 2555 | -9/Materials | Entered another Materials area 2555 | -8/Materials | Evolved 2 slots: Power x1, Propulsion x1 2658 | -8/Materials | Discovered new exit (range 17) 2691 | -8/Materials | Identified exit to Storage 2745 | -8/Materials | Entered Storage 2775 | -8/Storage | Lost 10 parts (3p4n2u1w) 2780 | -8/Storage | Core integrity fell below 50% 2852 | -8/Storage | Core integrity fell below 20% 2879 | -8/Storage | Learned location of Armory (-3) 3011 | -8/Storage | Discovered new exit (range 5) 3012 | -8/Storage | Identified exit to Factory 3013 | -8/Storage | Entered Factory 3013 | -7/Factory | Evolved 2 slots: Propulsion x1, Utility x1 3624 | -7/Factory | Lost 4 parts (3n1u) 4005 | -7/Factory | Sucked down chute 4005 | -7/Factory | Entered Waste 4006 | -7/Waste | Met a frightened Derelict 4014 | -7/Waste | Spotted C-40 Crusher 4025 | -7/Waste | Found Prototype Hackware 4042 | -7/Waste | Spotted C-40 Crusher 4063 | -7/Waste | Spotted C-40 Crusher 4077 | -7/Waste | Crushed by Compactor (1 part destroyed, 1 dropped) 4078 | -7/Waste | Core integrity fell below 50% 4079 | -7/Waste | Spotted C-40 Crusher 4080 | -7/Waste | Spotted C-40 Crusher 4102 | -7/Waste | Warlord forces began an assault 4109 | -7/Waste | Allies destroyed C-40 Crusher 4111 | -7/Waste | Allies destroyed C-40 Crusher 4111 | -7/Waste | Allies destroyed C-40 Crusher 4182 | -7/Waste | Spotted C-40 Crusher 4200 | -7/Waste | Allies destroyed C-40 Crusher 4213 | -7/Waste | Discovered new exit (range 12) 4226 | -7/Waste | Lost 5 allies 4265 | -7/Waste | Entered Factory 4265 | -7/Factory | Accompanied by 12 allies 4324 | -7/Factory | Garrison activated, responded to threat 4416 | -7/Factory | Build established: Scavenger-Mutant 4449 | -7/Factory | Lost 3 allies 4651 | -7/Factory | Identified Exp. System Shield 4935 | -7/Factory | Lost 3 allies 4951 | -7/Factory | Build established: Mutant 5008 | -7/Factory | Fabricated Propulsion Shielding (x2) 5208 | -7/Factory | Discovered new exit (range 16) 5243 | -7/Factory | Entered another Factory area 5243 | -6/Factory | Accompanied by 1 ally 5243 | -6/Factory | Evolved 2 slots: Utility x2 5313 | -6/Factory | Fabricated G-47 Trooper? 5451 | -6/Factory | Repaired Hardlight Generator 5697 | -6/Factory | Repaired Broken Cesium-ion Thruster 5730 | -6/Factory | Repaired Hrd. Light Armor Plating 5802 | -6/Factory | Lost 3 allies 5893 | -6/Factory | Repaired Broken Mic. Nuclear Core 6094 | -6/Factory | Discovered new exit (range 6) 6101 | -6/Factory | Entered Extension 6101 | -6/Extension | Accompanied by 1 ally 6200 | -6/Extension | Spotted B-75 Beast 6336 | -6/Extension | Rescued a captive Derelict 6596 | -6/Extension | Identified exit to Cetus 6619 | -6/Extension | Lost 3 allies 6642 | -6/Extension | Rescued a captive Derelict 6645 | -6/Extension | Rescued a captive Derelict 6735 | -6/Extension | Lost 3 allies 6740 | -6/Extension | Allies destroyed B-75 Beast 6740 | -6/Extension | Spotted B-75 Beast 6770 | -6/Extension | Destroyed B-75 Beast 6784 | -6/Extension | Lost 3 allies 6800 | -6/Extension | Destroyed 7 combat bots 6997 | -6/Extension | Discovered new exit (range 15) 7067 | -6/Extension | Rescued A7 7081 | -6/Extension | Rescued a captive Derelict 7082 | -6/Extension | Rescued a captive Derelict 7149 | -6/Extension | Rescued a captive Derelict 7161 | -6/Extension | Rescued a captive Derelict 7192 | -6/Extension | Rescued a captive Derelict 7247 | -6/Extension | Rescued a captive Derelict 7247 | -6/Extension | Rescued a captive Derelict 7434 | -6/Extension | Disrupted transfer network 7507 | -6/Extension | Build established: Scavenger-Mutant 7680 | -6/Extension | Entered Cetus 7680 | -6/Cetus | Accompanied by 4 allies (A7) 7685 | -6/Cetus | Acquired a Cetus Manufacturing Module code from A7 7696 | -6/Cetus | Spotted Cetus Guard 7697 | -6/Cetus | Spotted Cetus Guard 7708 | -6/Cetus | Spotted Cetus Guard 7710 | -6/Cetus | Destroyed Cetus Guard 7711 | -6/Cetus | Allies destroyed Cetus Guard 7715 | -6/Cetus | Destroyed Cetus Guard 7716 | -6/Cetus | Spotted Cetus Guard 7723 | -6/Cetus | Destroyed Cetus Guard 7796 | -6/Cetus | Started Cetus Manufacturing Module 7821 | -6/Cetus | Manufactured an Enhanced Grunt 7846 | -6/Cetus | Manufactured an Enhanced Grunt 7871 | -6/Cetus | Manufactured an Enhanced Grunt 7896 | -6/Cetus | Manufactured an Enhanced Grunt 7912 | -6/Cetus | Discovered new exit (range 16) 7921 | -6/Cetus | Manufactured an Enhanced Grunt 7946 | -6/Cetus | Spotted Cetus Guard 7946 | -6/Cetus | Spotted Cetus Guard 7949 | -6/Cetus | Spotted Cetus Guard 7950 | -6/Cetus | Spotted Cetus Guard 7957 | -6/Cetus | Destroyed Cetus Guard 7958 | -6/Cetus | Destroyed Cetus Guard 7958 | -6/Cetus | Destroyed Cetus Guard 7959 | -6/Cetus | Destroyed Cetus Guard 7970 | -6/Cetus | Discovered new exit (range 16) 7980 | -6/Cetus | Met Revision 17 8059 | -6/Cetus | Entered Archives 8059 | -6/Archives | Accompanied by 4 allies (A7) 8089 | -6/Archives | Unable to access archive contents 8172 | -6/Archives | Discovered new exit (range 15) 8214 | -6/Archives | Discovered new exit (range 14) 8224 | -6/Archives | Discovered new exit (range 13) 8255 | -6/Archives | Entered Hub_04(d) 8255 | -6/Hub_04(d) | Accompanied by 2 allies 8337 | -6/Hub_04(d) | Discovered new exit (range 6) 8349 | -6/Hub_04(d) | Discovered new exit (range 16) 8368 | -6/Hub_04(d) | Identified exit to Factory 8478 | -6/Hub_04(d) | Build established: Scavenger-Sprinter 8833 | -6/Hub_04(d) | Network Hub disabled 8833 | -6/Hub_04(d) | Network Hub disabled 8852 | -6/Hub_04(d) | Spotted Lightning 8852 | -6/Hub_04(d) | Spotted Lightning 8852 | -6/Hub_04(d) | Spotted Lightning 8900 | -6/Hub_04(d) | Disrupted transfer network 8902 | -6/Hub_04(d) | Entered Factory 8902 | -5/Factory | Evolved 2 slots: Utility x1, Weapon x1 8923 | -5/Factory | Identified exit to Upper Caves 9042 | -5/Factory | Lost 5 parts (1p3u1w) 9202 | -5/Factory | First assault squad dispatched 9279 | -5/Factory | Lost 7 parts (1p3n2u1w) 9289 | -5/Factory | Entered Upper Caves 9303 | -5/Upper Caves | Learned Factory non-interactive machine intel 9332 | -5/Upper Caves | A Derelict revealed a hidden shortcut to "reach the base" 9332 | -5/Upper Caves | Identified exit to Warlord 9333 | -5/Upper Caves | Entered Warlord 9347 | -5/Warlord | System corruption cleaned by Quarantine Array 9388 | -5/Warlord | Found Signal Generator 9389 | -5/Warlord | Found Signal Generator 9441 | -5/Warlord | Met Warlord 9463 | -5/Warlord | Found Prototype Special Weapon 9464 | -5/Warlord | Found Prototype Special Weapon 9464 | -5/Warlord | Identified RU-N14's Throwing Claymores v3 (x2) 9466 | -5/Warlord | Warlord's base attacked by MAIN.C 9469 | -5/Warlord | Found RU-N14's Throwing Claymores v3 9474 | -5/Warlord | Found RU-N14's Throwing Claymores v3 9761 | -5/Warlord | Build established: Hacker-Skirmisher 9816 | -5/Warlord | Warlord forces counterattacked 9826 | -5/Warlord | Found Prototype Energy Gun 9990 | -5/Warlord | Identified Vortex Shotgun 10013 | -5/Warlord | Discovered new exit (range 20) 10051 | -5/Warlord | Identified exit to Proximity Caves 10052 | -5/Warlord | Entered Proximity Caves 10064 | -4/Proximity Caves | Lost 4 allies 10232 | -4/Proximity Caves | Attracted the attention of an 0b10 checkpoint 10301 | -4/Proximity Caves | Destroyed 7 combat bots 10346 | -4/Proximity Caves | Identified exit to Factory 10546 | -4/Proximity Caves | Entered Factory 10546 | -4/Factory | Evolved 2 slots: Utility x1, Weapon x1 10547 | -4/Factory | Loaded intel: 214 non-interactive machine locations 10577 | -4/Factory | Discovered new exit (range 16) 10586 | -4/Factory | Build established: Scavenger-Tank 10649 | -4/Factory | Identified exit to Upper Caves 10651 | -4/Factory | Entered Upper Caves 10902 | -4/Upper Caves | Attacked by a faux Warlord 10986 | -4/Upper Caves | System corruption reached 10% 11013 | -4/Upper Caves | Attracted the attention of an 0b10 outpost 11020 | -4/Upper Caves | Lost 8 parts (1p1n5u1w) 11247 | -4/Upper Caves | Lost 6 parts (2n2u2w) 11372 | -4/Upper Caves | Discovered new exit (range 17) 11402 | -4/Upper Caves | Entered another Upper Caves area 11482 | -4/Upper Caves | Build established: Mutant 11702 | -4/Upper Caves | Learned 12 Research zone layouts 11940 | -4/Upper Caves | Discovered new exit (range 10) 11957 | -4/Upper Caves | Entered Zhirov 11957 | -4/Zhirov | Discovered new exit (range 3) 11992 | -4/Zhirov | Met Zhirov 12033 | -4/Zhirov | Learned location of Quarantine (-3) 12033 | -4/Zhirov | Learned location of Testing (-2) 12033 | -4/Zhirov | Learned location of Command (-1) 12066 | -4/Zhirov | Zhirov requested help retrieving the SGEMP Prototype 12100 | -4/Zhirov | Found Alien Artifact 12100 | -4/Zhirov | Identified Integrated Dissipator 12100 | -4/Zhirov | Installed Integrated Dissipator, increased core heat dissipation (+20) 12122 | -4/Zhirov | Found Alien Artifact 12189 | -4/Zhirov | Entered Proximity Caves 12203 | -3/Proximity Caves | Found Alien Artifact 12205 | -3/Proximity Caves | Identified Dimensional Node Initializer 12205 | -3/Proximity Caves | Initialized slip node 12290 | -3/Proximity Caves | Spotter reported a threat 12297 | -3/Proximity Caves | Spotter reported a threat 12331 | -3/Proximity Caves | Spotted B-86 Titan 12351 | -3/Proximity Caves | System corruption reached 30% 12375 | -3/Proximity Caves | Spotter reported a threat 12407 | -3/Proximity Caves | Lost 4 parts (1p2n1u) 12457 | -3/Proximity Caves | Core integrity fell below 50% 12490 | -3/Proximity Caves | Lost 4 parts (1n3u) 12490 | -3/Proximity Caves | Discovered new exit (range 14) 12496 | -3/Proximity Caves | Entered Research 12496 | -3/Research | Evolved 2 slots: Utility x2 12497 | -3/Research | Identified exit to Research 12497 | -3/Research | Identified exit to Quarantine 12632 | -3/Research | Spotted B-90 Cyclops 12634 | -3/Research | Discovered exit to Quarantine (range 20) 12656 | -3/Research | Entered Quarantine 12770 | -3/Quarantine | Found Alien Slashing Weapon 12770 | -3/Quarantine | Identified Sigix Broadsword 12822 | -3/Quarantine | Found Prototype Processor 12822 | -3/Quarantine | Identified Exp. Target Analyzer 12908 | -3/Quarantine | Garrison activated, responded to threat 12939 | -3/Quarantine | Repaired Broken Adv. Gravity Neutralizer? 12965 | -3/Quarantine | Core integrity fell below 50% 12974 | -3/Quarantine | Released all parts (11) 13002 | -3/Quarantine | Core integrity fell below 20% 13004 | -3/Quarantine | Lost 4 parts (1n3u) 13017 | -3/Quarantine | Destroyed by H-77 Assassin with Coil Gun Last Messages --------------- Released Adv. Hacking Suite. Released Triangulator. Released Hacking Suite. Released Adv. System Shield. Released Enh. Optical Array. Released Imp. Targeting Computer. Released Enh. Force Lance. Released Exp. Target Analyzer. Released Mic. Antimatter Reactor. Slug penetrates Wall. Penetrated by Slug. O-24 Administrator uses terminal to summon reinforcements. ALERT: Hostiles spotted, dispatching reinforcements to Terminal Q016. O-24 Administrator locks terminal. Penetrated by Slug. Slug penetrates Wall. U-05 Engineer destroyed. [Achievement: Just Browsing] Map ----- +----------------------------------------------------+ | ?????????????????????????????????????????????????? | | ?????????????????????????????????????????????????? | | ?????????????????????????????????????????????????? | | ?????????????????????????????????????????????????? | | ?????????????????????????????????????????????????? | | ?????????????????????????????????????????????????? | | ?????????????????????????????????????????????????? | | ?????????????????????????????????????????????????? | | ?????????????????????????????????????????????????? | | ?????????????????????????????????????????????????? | | ???????????????????????? ?????????????????????? | | ???????????????????????? ????????????????????? | | ???????????####????????? #????????????????????? | | ???????????#T"#????????# ##???????????????????? | | ############ "########?# T???????????????????? | | #?# "????????????????????? | | #?# #????????????????????? | | s #?#u #????????????????????? | | #?# w #????????????????????? | | ######+########## #?# #????????????????????? | | ??? ???????# #?# #????????????????????? | | ? ?????# |### #????????????????????? | | # #????# !%* #????????????????????? | | # """"" #????# ! #????????????????????? | | # """"" #????# #????????????????????? | | # """"" #????# @ +????????????????????? | | # #??######+###hh #????????????????????? | | # #??# # #????????????????????? | | ##??###??##??# """ # #????????????????????? | | ##????????????# """" # ???????????????????? | | ??????????????# """" # < ??????????????????? | | ??????????????# """ # #?????????????????? | | ??????????????# # #?????????????????? | | ??????????????# ?? #########?????????????????? | | ??????????????# ???? #?????????????????????????? | | ???????????????????? #?????????????????????????? | | ????????????????????####?????????????????????????? | | ?????????????????????????????????????????????????? | | ?????????????????????????????????????????????????? | | ?????????????????????????????????????????????????? | | ?????????????????????????????????????????????????? | | ?????????????????????????????????????????????????? | | ?????????????????????????????????????????????????? | | ?????????????????????????????????????????????????? | | ?????????????????????????????????????????????????? | | ?????????????????????????????????????????????????? | | ?????????????????????????????????????????????????? | | ?????????????????????????????????????????????????? | | ?????????????????????????????????????????????????? | | | +----------------------------------------------------+ Best States ------------- Heat Dissipation 66 Energy Generation 45 Energy Capacity 690 Matter Stores 300 Matter Capacity 300 Sight Range 22 Robot Scan Range 16 Terrain Scan Density 10 Additional Mass Support 16 Armor Coverage 600 Core Shielding 40 Propulsion Shielding 33 Utility Shielding 33 Weapon Shielding 66 Phase Shifting 5 Evasion (%) 69 Targeting Accuracy 6 Target Analysis 10 Recoil Reduction 3 Offensive Hacking 24 Defensive Hacking 16 Item Schematics ----------------- Propulsion Shielding | -10/Materials | Hacked Adv. Power Amplifier | -6/Hub_04(d) | Hacked Imp. Hacking Suite | -6/Hub_04(d) | Hacked Mic. Fission Core | -6/Hub_04(d) | Hacked Assault Drone Bay | -4/Zhirov | Free Exp. Heat Sink | -4/Zhirov | Free Exp. Optical Array | -4/Zhirov | Free Imp. Arc Thrower | -4/Zhirov | Free Robot Schematics ------------------ R-10 Processor | -6/Hub_04(d) | Hacked A-02 Transporter | -6/Hub_04(d) | Hacked Fabricated ------------ Propulsion Shielding | x2 | -7/Factory G-47 Trooper | x3 | -6/Factory | Preloaded Repaired ---------- Hvy. EM Pulse Gun | 70% | -10/Materials Hardlight Generator | 23% | -6/Factory Cesium-ion Thruster | 40% | -6/Factory | Broken Hrd. Light Armor Plating | 34% | -6/Factory Mic. Nuclear Core | 6% | -6/Factory | Broken Adv. Gravity Neutralizer | 25% | -3/Quarantine | Broken Alien Tech Used ----------------- Integrated Dissipator Dimensional Node Initializer Sigix Broadsword Achievements -------------- Close Call Fist Fight Generalissimo Just Browsing Prison Break Project G-00 Revising The Future Significant Disruption Challenges ------------ None Game ------ Seed GrenadeLobotomyWheel Manual? 0 Play Time 03:46:29 Cumulative 37.6 hours Start 2025.05.21 @ 07:56:59 End 2025.06.13 @ 12:03:33 Sessions 5 Manual Loads 0 Difficulty Rogue Special Mode None Game No. 7 Rogue 4 Adventurer 3 Explorer 0 Win Type - Total 2 Types 1/0/0/1/0/0/0/0/0/0 Lore% 15 Gallery% 26 Achievement% 36 Wizard Run 0 Options --------- Layout 1 ASCII 0 Keyboard 0 Movement Mouse Keybinds 0 Fullscreen 2 Font 32/SmallcapsGlow Map View 50x40 Zoom Use 0% Tactical HUD 0 Map Filters NONE Filters NONE Steam 0 RUN: c2074003-758d-4874-bcd8-12a672767174